[Event "ESP-chT 1st Division 2020"]
[Site "Padron"]
[Date "2020.10.03"]
[Round "1.1"]
[White "Del Rio De Angelis, Salvador G."]
[Black "Adla, Diego"]
[Result "1-0"]
[ECO "E41"]
[WhiteElo "2508"]
[BlackElo "2438"]
[Annotator "ChessBase"]
[PlyCount "63"]
[EventDate "2020.10.01"]
[EventType "team-tourn"]
[EventCountry "ESP"]
[SourceTitle "playchess.com"]
[Source "ChessBase"]
[SourceQuality "1"]
[TimeControl "5400+30"]

1. d4 {[%emt 0:00:00]} Nf6 {[%emt 0:00:00]} 2. c4 {[%emt 0:00:00]} e6 {[%emt 0:00:00]} 3. Nc3 {[%emt 0:00:02]} Bb4 {[%emt 0:00:00]} 4. e3 {[%emt 0:00:09]} c5 {[%emt 0:00:41]} 5. Bd3 {[%emt 0:00:28]} Nc6 {[%emt 0:00:20]} 6. Nf3 {[%emt 0:00:20]} Bxc3+ {[%emt 0:01:01]} 7. bxc3 {[%emt 0:00:11]} d6 {[%emt 0:00:04]} 8. e4 {[%emt 0:00:47]} e5 {[%emt 0:00:16]} 9. h3 {[%emt 0:01:13]} h6 {[%emt 0:06:50]} 10. Be3 {[%emt 0:12:25]} b6 {[%emt 0:09:37]} 11. Rb1 {[%emt 0:08:56]} exd4 {[%emt 0:08:16]} 12. cxd4 {[%emt 0:00:11]} O-O {[%emt 0:00:07]} 13. d5 {[%emt 0:26:17]} Nb4 {[%emt 0:06:53]} 14. a3 {[%emt 0:01:41]} Nxd3+ {[%emt 0:15:02]} 15. Qxd3 {[%emt 0:00:09]} Re8 {[%emt 0:15:22]} 16. Nd2 {[%emt 0:00:13]} a6 {[%emt 0:00:13]} 17. O-O {[%emt 0:06:46]} b5 {[%emt 0:00:04]} 18. f3 {[%emt 0:01:09]} Nh5 {[%emt 0:03:40]} 19. Rf2 {[%emt 0:07:00]} f5 {[%emt 0:02:35]} 20. g4 {[%emt 0:04:40]} fxe4 {[%emt 0:03:52]} 21. fxe4 {[%emt 0:04:36]} Nf6 {[%emt 0:00:09]} 22. Rbf1 {[%emt 0:00:23]} Nd7 {[%emt 0:00:10]} 23. Bf4 {[%emt 0:01:06]} Ne5 {[%emt 0:01:24]} 24. Bxe5 {[%emt 0:01:58]} Rxe5 {[%emt 0:00:02]} 25. Nf3 {[%emt 0:08:51]} Re8 {[%emt 0:00:47]} 26. e5 {[%emt 0:02:24]} dxe5 {[%emt 0:00:30]} 27. Qg6 {[%emt 0:00:15]} Bb7 {[%emt 0:18:52]} 28. g5 {[%emt 0:02:32]} e4 {[%emt 0:02:23]} 29. gxh6 {[%emt 0:03:12]} Qf6 {[%emt 0:00:57]} 30. Qxf6 {[%emt 0:00:38]} gxf6 {[%emt 0:00:06]} 31. Nh4 {[%emt 0:00:04]} Rad8 {[%emt 0:04:23]} 32. Rg2+ {[%emt 0:00:36]} 1-0

[Event "ESP-chT 1st Division 2020"]
[Site "Padron"]
[Date "2020.10.03"]
[Round "1.2"]
[White "Glavina, Pablo"]
[Black "Demuth, Adrien"]
[Result "1/2-1/2"]
[ECO "E92"]
[WhiteElo "2412"]
[BlackElo "2488"]
[Annotator "ChessBase"]
[PlyCount "62"]
[EventDate "2020.10.01"]
[EventType "team-tourn"]
[EventCountry "ESP"]
[SourceTitle "playchess.com"]
[Source "ChessBase"]
[SourceQuality "1"]
[TimeControl "5400+30"]

1. c4 {[%emt 0:00:00]} Nf6 {[%emt 0:00:01]} 2. Nc3 {[%emt 0:00:00]} g6 {[%emt 0:00:39]} 3. e4 {[%emt 0:00:00]} d6 {[%emt 0:00:07]} 4. d4 {[%emt 0:00:07]} Bg7 {[%emt 0:00:09]} 5. Nf3 {[%emt 0:00:56]} O-O {[%emt 0:00:20]} 6. Be2 {[%emt 0:00:13]} e5 {[%emt 0:01:00]} 7. d5 {[%emt 0:00:35]} a5 {[%emt 0:01:43]} 8. Bg5 {[%emt 0:00:08]} h6 {[%emt 0:00:20]} 9. Be3 {[%emt 0:01:31]} Ng4 {[%emt 0:01:09]} 10. Bd2 {[%emt 0:00:07]} f5 {[%emt 0:00:11]} 11. h3 {[%emt 0:00:47]} Nf6 {[%emt 0:00:58]} 12. exf5 {[%emt 0:00:17]} gxf5 {[%emt 0:00:11]} 13. Qc1 {[%emt 0:00:25]} f4 {[%emt 0:00:50]} 14. g3 {[%emt 0:00:14]} e4 {[%emt 0:00:27]} 15. Nh4 {[%emt 0:00:08]} e3 {[%emt 0:00:08]} 16. fxe3 {[%emt 0:00:09]} fxg3 {[%emt 0:00:05]} 17. Ng6 {[%emt 0:00:09]} Re8 {[%emt 0:00:54]} 18. O-O {[%emt 0:02:44]} Nbd7 {[%emt 0:25:20]} 19. Nh4 {[%emt 0:17:14]} Ne4 {[%emt 0:16:28]} 20. Nf5 {[%emt 0:01:00]} Ndc5 {[%emt 0:01:13]} 21. Qc2 {[%emt 0:15:27]} Bxc3 {[%emt 0:21:58]} 22. Bxc3 {[%emt 0:03:07]} Bxf5 {[%emt 0:09:08]} 23. Rxf5 {[%emt 0:00:06]} Nxc3 {[%emt 0:00:17]} 24. Rf8+ {[%emt 0:11:18]} Kxf8 {[%emt 0:16:20]} 25. Rf1+ {[%emt 0:00:07]} Kg7 {[%emt 0:00:03]} 26. Rf7+ {[%emt 0:00:08]} Kxf7 {[%emt 0:00:03]} 27. Qh7+ {[%emt 0:00:06]} Kf6 {[%emt 0:00:20]} 28. Qxh6+ {[%emt 0:00:06]} Kf5 {[%emt 0:00:32]} 29. Qh7+ {[%emt 0:00:34]} Kf6 {[%emt 0:01:42]} 30. Qh6+ {[%emt 0:00:06]} Kf5 {[%emt 0:00:01]} 31. Qh7+ {[%emt 0:01:52]} Ke5 1/2-1/2

[Event "ESP-chT 1st Division 2020"]
[Site "Padron"]
[Date "2020.10.03"]
[Round "1.3"]
[White "Narciso Dublan, Marc"]
[Black "Quintin Navarro, Alberto"]
[Result "1-0"]
[ECO "E92"]
[WhiteElo "2477"]
[BlackElo "2383"]
[Annotator "ChessBase"]
[PlyCount "73"]
[EventDate "2020.10.01"]
[EventType "team-tourn"]
[EventCountry "ESP"]
[SourceTitle "playchess.com"]
[Source "ChessBase"]
[SourceQuality "1"]
[TimeControl "5400+30"]

1. d4 {[%emt 0:00:00]} Nf6 {[%emt 0:00:00]} 2. c4 {[%emt 0:00:00]} g6 {[%emt 0:00:15]} 3. Nc3 {[%emt 0:00:12]} Bg7 {[%emt 0:00:06]} 4. e4 {[%emt 0:00:52]} d6 {[%emt 0:00:07]} 5. Be2 {[%emt 0:00:36]} O-O {[%emt 0:00:13]} 6. Nf3 {[%emt 0:00:11]} e5 {[%emt 0:01:07]} 7. d5 {[%emt 0:00:40]} a5 {[%emt 0:00:12]} 8. Bg5 {[%emt 0:00:31]} h6 {[%emt 0:00:33]} 9. Bh4 {[%emt 0:00:10]} Na6 {[%emt 0:01:24]} 10. Nd2 {[%emt 0:00:19]} Bd7 {[%emt 0:01:37]} 11. O-O {[%emt 0:00:35]} Qe8 {[%emt 0:00:20]} 12. Kh1 {[%emt 0:00:36]} Nh7 {[%emt 0:00:35]} 13. a3 {[%emt 0:01:04]} a4 {[%emt 0:06:57]} 14. Nb5 {[%emt 0:00:24]} Bxb5 {[%emt 0:00:18]} 15. cxb5 {[%emt 0:00:04]} Nc5 {[%emt 0:00:44]} 16. f3 {[%emt 0:01:05]} b6 {[%emt 0:08:18]} 17. b4 {[%emt 0:07:57]} axb3 {[%emt 0:00:27]} 18. Nxb3 {[%emt 0:00:05]} Bf6 {[%emt 0:05:03]} 19. Be1 {[%emt 0:02:17]} Bg5 {[%emt 0:05:25]} 20. Nxc5 {[%emt 0:00:43]} dxc5 {[%emt 0:00:50]} 21. Qb3 {[%emt 0:01:49]} Be7 {[%emt 0:03:01]} 22. a4 {[%emt 0:09:16]} Bd6 {[%emt 0:02:37]} 23. a5 {[%emt 0:02:04]} bxa5 {[%emt 0:05:15]} 24. Bxa5 {[%emt 0:02:06]} Qe7 {[%emt 0:00:47]} 25. Bd2 {[%emt 0:02:53]} Qh4 {[%emt 0:10:39]} 26. Ra6 {[%emt 0:23:50]} Nf6 {[%emt 0:12:41]} 27. g3 {[%emt 0:07:47]} Qh3 {[%emt 0:02:36]} 28. Qe3 {[%emt 0:00:32]} h5 {[%emt 0:03:02]} 29. Rb1 {[%emt 0:09:13]} Rab8 {[%emt 0:03:45]} 30. b6 {[%emt 0:07:07]} Qc8 {[%emt 0:07:15]} 31. Qd3 {[%emt 0:00:19]} c4 {[%emt 0:03:28]} 32. Qxc4 {[%emt 0:00:21]} Nd7 {[%emt 0:00:15]} 33. Qc6 {[%emt 0:08:01]} Nxb6 {[%emt 0:01:00]} 34. Raxb6 {[%emt 0:01:49]} Rxb6 {[%emt 0:00:17]} 35. Rxb6 {[%emt 0:00:06]} cxb6 {[%emt 0:00:06]} 36. Qxd6 {[%emt 0:00:20]} Qc2 {[%emt 0:01:01]} 37. Bh6 {[%emt 0:00:53]} 1-0

[Event "ESP-chT 1st Division 2020"]
[Site "Padron"]
[Date "2020.10.03"]
[Round "1.4"]
[White "Bayo Milagro, Alvaro"]
[Black "Suarez Garcia, Carlos"]
[Result "0-1"]
[ECO "B22"]
[WhiteElo "2254"]
[BlackElo "2439"]
[Annotator "ChessBase"]
[PlyCount "60"]
[EventDate "2020.10.01"]
[EventType "team-tourn"]
[EventCountry "ESP"]
[SourceTitle "playchess.com"]
[Source "ChessBase"]
[SourceQuality "1"]
[TimeControl "5400+30"]

1. e4 {[%emt 0:00:00]} c5 {[%emt 0:01:14]} 2. c3 {[%emt 0:00:00]} e6 {[%emt 0:02:39]} 3. d4 {[%emt 0:00:39]} d5 {[%emt 0:00:07]} 4. exd5 {[%emt 0:00:29]} exd5 {[%emt 0:00:32]} 5. Nf3 {[%emt 0:00:20]} Nc6 {[%emt 0:00:50]} 6. Be2 {[%emt 0:00:29]} Nf6 {[%emt 0:01:49]} 7. O-O {[%emt 0:00:10]} Bd6 {[%emt 0:00:05]} 8. dxc5 {[%emt 0:01:51]} Bxc5 {[%emt 0:00:09]} 9. Nbd2 {[%emt 0:00:10]} h6 {[%emt 0:11:06]} 10. Nb3 {[%emt 0:05:33]} Bd6 {[%emt 0:00:15]} 11. Be3 {[%emt 0:00:48]} Ne4 {[%emt 0:03:00]} 12. Qd3 {[%emt 0:05:47]} Be6 {[%emt 0:15:25]} 13. Nbd4 {[%emt 0:03:16]} O-O {[%emt 0:05:41]} 14. c4 {[%emt 0:03:05]} Nxd4 {[%emt 0:06:25]} 15. Nxd4 {[%emt 0:06:57]} Qh4 {[%emt 0:03:35]} 16. Nf3 {[%emt 0:12:47]} Qh5 {[%emt 0:04:29]} 17. Rfd1 {[%emt 0:03:18]} Ng5 {[%emt 0:09:23]} 18. h3 {[%emt 0:13:08]} Nxh3+ {[%emt 0:11:51]} 19. gxh3 {[%emt 0:00:07]} Qxh3 {[%emt 0:00:06]} 20. Qd4 {[%emt 0:11:42]} Bg4 {[%emt 0:01:25]} 21. Bf4 {[%emt 0:00:06]} Rfe8 {[%emt 0:11:16]} 22. Bxd6 {[%emt 0:00:54]} Rxe2 {[%emt 0:00:14]} 23. Nh2 {[%emt 0:03:51]} Bf5 {[%emt 0:01:01]} 24. Qf4 {[%emt 0:02:15]} Re6 {[%emt 0:00:58]} 25. Kh1 {[%emt 0:02:29]} Rxd6 {[%emt 0:01:31]} 26. Rxd5 {[%emt 0:03:36]} Rf6 {[%emt 0:00:34]} 27. Rg1 {[%emt 0:02:11]} Bg6 {[%emt 0:00:06]} 28. Qd4 {[%emt 0:01:39]} Re8 {[%emt 0:00:29]} 29. Re5 {[%emt 0:04:35]} Rxe5 {[%emt 0:00:15]} 30. Qxe5 {[%emt 0:00:13]} Rxf2 {[%emt 0:00:37]} 0-1

[Event "ESP-chT 1st Division 2020"]
[Site "Padron"]
[Date "2020.10.03"]
[Round "1.5"]
[White "Travadon, Loic"]
[Black "Vela Frago, Alberto"]
[Result "1-0"]
[ECO "D41"]
[WhiteElo "2424"]
[BlackElo "2071"]
[Annotator "ChessBase"]
[PlyCount "47"]
[EventDate "2020.10.01"]
[EventType "team-tourn"]
[EventCountry "ESP"]
[SourceTitle "playchess.com"]
[Source "ChessBase"]
[SourceQuality "1"]
[TimeControl "5400+30"]

1. Nf3 {[%emt 0:00:00]} d5 {[%emt 0:00:00]} 2. d4 {[%emt 0:00:09]} Nf6 {[%emt 0:00:13]} 3. c4 {[%emt 0:00:10]} e6 {[%emt 0:02:16]} 4. Nc3 {[%emt 0:00:09]} c5 {[%emt 0:00:48]} 5. cxd5 {[%emt 0:01:07]} Nxd5 {[%emt 0:00:12]} 6. e4 {[%emt 0:00:35]} Nxc3 {[%emt 0:00:20]} 7. bxc3 {[%emt 0:00:07]} cxd4 {[%emt 0:00:02]} 8. cxd4 {[%emt 0:00:06]} Bb4+ {[%emt 0:00:05]} 9. Bd2 {[%emt 0:00:06]} Bxd2+ {[%emt 0:00:03]} 10. Qxd2 {[%emt 0:00:07]} O-O {[%emt 0:00:05]} 11. Bc4 {[%emt 0:03:10]} b6 {[%emt 0:02:17]} 12. O-O {[%emt 0:00:24]} Bb7 {[%emt 0:00:38]} 13. Rfe1 {[%emt 0:00:32]} Nd7 {[%emt 0:01:37]} 14. Bb3 {[%emt 0:13:22]} Nf6 {[%emt 0:04:08]} 15. e5 {[%emt 0:02:01]} Nd5 {[%emt 0:12:56]} 16. Ng5 {[%emt 0:02:51]} Nc7 {[%emt 0:04:04]} 17. Bc2 {[%emt 0:05:31]} g6 {[%emt 0:06:01]} 18. Be4 {[%emt 0:01:18]} Nd5 {[%emt 0:13:05]} 19. Bf3 {[%emt 0:00:38]} Rb8 {[%emt 0:06:57]} 20. Rab1 {[%emt 0:18:26]} Nc3 {[%emt 0:12:34]} 21. Rb3 {[%emt 0:00:21]} Bxf3 {[%emt 0:00:33]} 22. Rxc3 {[%emt 0:00:20]} Bd5 {[%emt 0:00:29]} 23. Nxh7 {[%emt 0:01:00]} Kg7 {[%emt 0:01:55]} 24. Rh3 {[%emt 0:00:30]} 1-0

[Event "ESP-chT 1st Division 2020"]
[Site "Padron"]
[Date "2020.10.03"]
[Round "1.6"]
[White "Gracia Laguens, Asuncion"]
[Black "Ambartsumova, Karina"]
[Result "0-1"]
[ECO "A08"]
[WhiteElo "1414"]
[BlackElo "2371"]
[Annotator "ChessBase"]
[PlyCount "40"]
[EventDate "2020.10.01"]
[EventType "team-tourn"]
[EventCountry "ESP"]
[SourceTitle "playchess.com"]
[Source "ChessBase"]
[SourceQuality "1"]
[TimeControl "5400+30"]

1. Nf3 {[%emt 0:00:00]} d5 {[%emt 0:00:50]} 2. g3 {[%emt 0:04:09]} c5 {[%emt 0:00:37]} 3. Bg2 {[%emt 0:01:07]} Nc6 {[%emt 0:00:36]} 4. b3 {[%emt 0:03:22]} e5 {[%emt 0:01:58]} 5. d3 {[%emt 0:01:46]} Nf6 {[%emt 0:02:19]} 6. c4 {[%emt 0:03:52]} Be7 {[%emt 0:03:38]} 7. O-O {[%emt 0:04:09]} O-O {[%emt 0:02:30]} 8. Bb2 {[%emt 0:03:37]} d4 {[%emt 0:07:31]} 9. Nbd2 {[%emt 0:06:11]} Bf5 {[%emt 0:06:25]} 10. Re1 {[%emt 0:06:24]} Qd7 {[%emt 0:03:36]} 11. Nf1 {[%emt 0:02:01]} e4 {[%emt 0:06:17]} 12. dxe4 {[%emt 0:01:37]} Nxe4 {[%emt 0:02:58]} 13. e3 {[%emt 0:06:36]} d3 {[%emt 0:07:57]} 14. N1d2 {[%emt 0:06:49]} Bf6 {[%emt 0:08:31]} 15. Nxe4 {[%emt 0:09:50]} Bxb2 {[%emt 0:01:02]} 16. Rb1 {[%emt 0:03:44]} Ba3 {[%emt 0:01:23]} 17. Nfd2 {[%emt 0:03:07]} Ne5 {[%emt 0:06:44]} 18. Nc3 {[%emt 0:02:06]} Bg4 {[%emt 0:04:57]} 19. f3 {[%emt 0:03:13]} Be6 {[%emt 0:01:36]} 20. e4 {[%emt 0:01:11]} Qd4+ {[%emt 0:00:11]} 0-1

[Event "ESP-chT 1st Division 2020"]
[Site "Padron"]
[Date "2020.10.03"]
[Round "1.8"]
[White "Plazuelo Pascual, Juan"]
[Black "Brunello, Sabino"]
[Result "1/2-1/2"]
[ECO "D12"]
[WhiteElo "2474"]
[BlackElo "2539"]
[Annotator "ChessBase"]
[PlyCount "64"]
[EventDate "2020.10.01"]
[EventType "team-tourn"]
[EventCountry "ESP"]
[SourceTitle "playchess.com"]
[Source "ChessBase"]
[SourceQuality "1"]
[TimeControl "5400+30"]

1. d4 {[%emt 0:00:00]} d5 {[%emt 0:00:00]} 2. c4 {[%emt 0:00:00]} c6 {[%emt 0:00:00]} 3. Nf3 {[%emt 0:00:21]} Nf6 {[%emt 0:00:00]} 4. e3 {[%emt 0:00:17]} Bf5 {[%emt 0:00:00]} 5. Nc3 {[%emt 0:00:20]} e6 {[%emt 0:00:00]} 6. Nh4 {[%emt 0:00:28]} Bg6 {[%emt 0:00:00]} 7. Nxg6 {[%emt 0:01:09]} hxg6 {[%emt 0:00:05]} 8. Bd2 {[%emt 0:00:15]} Nbd7 {[%emt 0:01:08]} 9. Qc2 {[%emt 0:00:31]} Be7 {[%emt 0:02:59]} 10. cxd5 {[%emt 0:12:33]} exd5 {[%emt 0:00:57]} 11. Be2 {[%emt 0:06:53]} Nf8 {[%emt 0:01:38]} 12. O-O-O {[%emt 0:07:27]} Ne6 {[%emt 0:01:10]} 13. Kb1 {[%emt 0:06:31]} a5 {[%emt 0:09:07]} 14. h4 {[%emt 0:03:50]} b5 {[%emt 0:03:37]} 15. g4 {[%emt 0:03:04]} b4 {[%emt 0:09:15]} 16. g5 {[%emt 0:06:23]} bxc3 {[%emt 0:11:55]} 17. gxf6 {[%emt 0:00:09]} Bxf6 {[%emt 0:00:20]} 18. Qxc3 {[%emt 0:01:34]} c5 {[%emt 0:18:22]} 19. h5 {[%emt 0:17:36]} gxh5 {[%emt 0:07:55]} 20. Bxh5 {[%emt 0:02:36]} cxd4 {[%emt 0:15:43]} 21. exd4 {[%emt 0:04:59]} Qd6 {[%emt 0:09:03]} 22. Be3 {[%emt 0:08:27]} Ke7 {[%emt 0:03:24]} 23. Bg4 {[%emt 0:03:22]} Rhc8 {[%emt 0:01:19]} 24. Qd2 {[%emt 0:00:12]} Rc4 {[%emt 0:00:47]} 25. Rhe1 {[%emt 0:04:17]} Qb4 {[%emt 0:01:02]} 26. Bxe6 {[%emt 0:04:50]} fxe6 {[%emt 0:01:49]} 27. Re2 {[%emt 0:02:08]} Rb8 {[%emt 0:00:36]} 28. Qxb4+ {[%emt 0:00:27]} Rcxb4 {[%emt 0:00:47]} 29. Rc2 {[%emt 0:00:16]} Kf7 {[%emt 0:00:16]} 30. Rd3 {[%emt 0:01:43]} a4 {[%emt 0:01:09]} 31. a3 {[%emt 0:00:26]} R4b5 {[%emt 0:00:31]} 32. Bd2 {[%emt 0:00:31]} e5 {[%emt 0:00:32]} 1/2-1/2

[Event "ESP-chT 1st Division 2020"]
[Site "Padron"]
[Date "2020.10.03"]
[Round "1.9"]
[White "Larino Nieto, David"]
[Black "Rubio Mejia, Luis Ignacio"]
[Result "1-0"]
[ECO "A05"]
[WhiteElo "2477"]
[BlackElo "2405"]
[Annotator "ChessBase"]
[PlyCount "61"]
[EventDate "2020.10.01"]
[EventType "team-tourn"]
[EventCountry "ESP"]
[SourceTitle "playchess.com"]
[Source "ChessBase"]
[SourceQuality "1"]
[TimeControl "5400+30"]

1. Nf3 {[%emt 0:00:00]} Nf6 {[%emt 0:00:00]} 2. b3 {[%emt 0:00:00]} c5 {[%emt 0:02:13]} 3. Bb2 {[%emt 0:00:00]} g6 {[%emt 0:00:15]} 4. c4 {[%emt 0:02:31]} Bg7 {[%emt 0:00:24]} 5. g3 {[%emt 0:00:08]} b6 {[%emt 0:04:39]} 6. Bg2 {[%emt 0:00:09]} Bb7 {[%emt 0:00:05]} 7. O-O {[%emt 0:00:49]} O-O {[%emt 0:00:32]} 8. Nc3 {[%emt 0:00:13]} d5 {[%emt 0:15:24]} 9. Nxd5 {[%emt 0:04:45]} Nxd5 {[%emt 0:00:09]} 10. Bxg7 {[%emt 0:00:20]} Kxg7 {[%emt 0:00:10]} 11. cxd5 {[%emt 0:00:02]} Qxd5 {[%emt 0:02:39]} 12. d4 {[%emt 0:00:31]} Na6 {[%emt 0:09:31]} 13. e4 {[%emt 0:01:58]} Qd7 {[%emt 0:11:56]} 14. d5 {[%emt 0:01:11]} Rad8 {[%emt 0:02:49]} 15. Qc1 {[%emt 0:02:46]} f6 {[%emt 0:05:45]} 16. Rd1 {[%emt 0:01:44]} Nc7 {[%emt 0:06:51]} 17. h4 {[%emt 0:05:17]} e5 {[%emt 0:06:40]} 18. h5 {[%emt 0:01:03]} Nb5 {[%emt 0:03:07]} 19. Kh2 {[%emt 0:00:55]} Nd4 {[%emt 0:05:56]} 20. Nxd4 {[%emt 0:00:17]} cxd4 {[%emt 0:00:20]} 21. h6+ {[%emt 0:08:50]} Kh8 {[%emt 0:02:34]} 22. Qa3 {[%emt 0:01:04]} f5 {[%emt 0:01:52]} 23. Qxa7 {[%emt 0:09:31]} fxe4 {[%emt 0:02:07]} 24. Qxb6 {[%emt 0:00:35]} Qxd5 {[%emt 0:05:19]} 25. Rac1 {[%emt 0:29:17]} Rd6 {[%emt 0:08:15]} 26. Qb4 {[%emt 0:00:01]} g5 {[%emt 0:01:01]} 27. Rc7 {[%emt 0:01:13]} Ba8 {[%emt 0:01:42]} 28. Kg1 {[%emt 0:01:53]} Rdf6 {[%emt 0:00:49]} 29. Rdc1 {[%emt 0:02:59]} Rxf2 {[%emt 0:00:46]} 30. Qe7 {[%emt 0:00:18]} R2f7 {[%emt 0:00:32]} 31. Qxf7 {[%emt 0:01:19]} 1-0

[Event "ESP-chT 1st Division 2020"]
[Site "Padron"]
[Date "2020.10.03"]
[Round "1.10"]
[White "Martinez Martin, David"]
[Black "Silva, Luis Neves Da"]
[Result "1-0"]
[ECO "D31"]
[WhiteElo "2389"]
[BlackElo "2379"]
[Annotator "ChessBase"]
[PlyCount "103"]
[EventDate "2020.10.01"]
[EventType "team-tourn"]
[EventCountry "ESP"]
[SourceTitle "playchess.com"]
[Source "ChessBase"]
[SourceQuality "1"]
[TimeControl "5400+30"]

1. d4 {[%emt 0:00:00]} d5 {[%emt 0:00:00]} 2. c4 {[%emt 0:00:00]} e6 {[%emt 0:00:03]} 3. Nc3 {[%emt 0:00:00]} a6 {[%emt 0:00:06]} 4. cxd5 {[%emt 0:01:35]} exd5 {[%emt 0:00:17]} 5. Bf4 {[%emt 0:00:42]} Nf6 {[%emt 0:00:46]} 6. e3 {[%emt 0:04:23]} Bd6 {[%emt 0:00:08]} 7. Bxd6 {[%emt 0:09:25]} Qxd6 {[%emt 0:00:08]} 8. Bd3 {[%emt 0:01:06]} O-O {[%emt 0:00:13]} 9. h3 {[%emt 0:05:08]} Re8 {[%emt 0:03:32]} 10. Nf3 {[%emt 0:04:35]} Ne4 {[%emt 0:02:11]} 11. Qc2 {[%emt 0:14:46]} Bf5 {[%emt 0:20:30]} 12. Nh4 {[%emt 0:07:39]} Bd7 {[%emt 0:00:26]} 13. Nxe4 {[%emt 0:03:41]} dxe4 {[%emt 0:00:22]} 14. Bxe4 {[%emt 0:00:16]} Qe7 {[%emt 0:02:47]} 15. Bxh7+ {[%emt 0:00:28]} Kh8 {[%emt 0:00:34]} 16. Nf3 {[%emt 0:12:07]} g6 {[%emt 0:03:28]} 17. Bxg6 {[%emt 0:02:10]} fxg6 {[%emt 0:00:09]} 18. Ne5 {[%emt 0:06:50]} Bf5 {[%emt 0:29:59]} 19. Nxg6+ {[%emt 0:02:19]} Bxg6 {[%emt 0:00:04]} 20. Qxg6 {[%emt 0:00:10]} Qb4+ {[%emt 0:00:38]} 21. Kf1 {[%emt 0:00:10]} Nc6 {[%emt 0:00:09]} 22. Qh6+ {[%emt 0:01:53]} Kg8 {[%emt 0:00:09]} 23. Qg6+ {[%emt 0:03:23]} Kh8 {[%emt 0:00:23]} 24. Qf6+ {[%emt 0:03:10]} Kg8 {[%emt 0:00:47]} 25. h4 {[%emt 0:00:17]} Re7 {[%emt 0:09:01]} 26. Rh3 {[%emt 0:02:06]} Rg7 {[%emt 0:00:54]} 27. Qe6+ {[%emt 0:03:13]} Kh8 {[%emt 0:00:54]} 28. Qh6+ {[%emt 0:08:25]} Kg8 {[%emt 0:00:01]} 29. Qe6+ {[%emt 0:01:33]} Kh8 {[%emt 0:00:01]} 30. Qb3 {[%emt 0:02:39]} Qxb3 {[%emt 0:07:01]} 31. axb3 {[%emt 0:00:03]} Rag8 {[%emt 0:00:28]} 32. g3 {[%emt 0:00:25]} Rf7 {[%emt 0:00:15]} 33. f4 {[%emt 0:00:48]} Re7 {[%emt 0:00:17]} 34. Kf2 {[%emt 0:00:44]} Nb4 {[%emt 0:01:30]} 35. Rg1 {[%emt 0:00:46]} Rge8 {[%emt 0:01:50]} 36. g4 {[%emt 0:00:14]} Nd3+ {[%emt 0:00:06]} 37. Kg2 {[%emt 0:00:32]} Rxe3 {[%emt 0:00:23]} 38. Rxe3 {[%emt 0:00:07]} Rxe3 {[%emt 0:00:02]} 39. Rf1 {[%emt 0:00:39]} Re4 {[%emt 0:03:20]} 40. Kg3 {[%emt 0:00:18]} Rxd4 {[%emt 0:01:17]} 41. g5 {[%emt 0:00:03]} Nc5 {[%emt 0:01:24]} 42. Re1 {[%emt 0:01:02]} Re4 {[%emt 0:02:02]} 43. Rxe4 {[%emt 0:01:05]} Nxe4+ {[%emt 0:00:02]} 44. Kg4 {[%emt 0:00:04]} Kg7 {[%emt 0:01:58]} 45. h5 {[%emt 0:00:13]} c5 {[%emt 0:00:47]} 46. f5 {[%emt 0:00:35]} Nf2+ {[%emt 0:02:26]} 47. Kf3 {[%emt 0:00:27]} Nd3 {[%emt 0:04:03]} 48. f6+ {[%emt 0:00:21]} Kf7 {[%emt 0:01:38]} 49. Ke4 {[%emt 0:00:08]} Nxb2 {[%emt 0:00:58]} 50. Kf5 {[%emt 0:00:08]} Nd3 {[%emt 0:01:36]} 51. g6+ {[%emt 0:00:13]} Kg8 {[%emt 0:01:02]} 52. f7+ {[%emt 0:00:39]} 1-0

[Event "ESP-chT 1st Division 2020"]
[Site "Padron"]
[Date "2020.10.03"]
[Round "1.11"]
[White "Gomez Dieguez, David"]
[Black "Aguilera Lopez, Alejandro"]
[Result "1-0"]
[ECO "B45"]
[WhiteElo "2261"]
[BlackElo "2241"]
[Annotator "ChessBase"]
[PlyCount "91"]
[EventDate "2020.10.01"]
[EventType "team-tourn"]
[EventCountry "ESP"]
[SourceTitle "playchess.com"]
[Source "ChessBase"]
[SourceQuality "1"]
[TimeControl "5400+30"]

1. e4 {[%emt 0:00:00]} c5 {[%emt 0:00:00]} 2. Nc3 {[%emt 0:00:00]} e6 {[%emt 0:00:21]} 3. Nf3 {[%emt 0:00:00]} Nc6 {[%emt 0:00:07]} 4. d4 {[%emt 0:00:02]} cxd4 {[%emt 0:00:06]} 5. Nxd4 {[%emt 0:00:02]} Nf6 {[%emt 0:00:08]} 6. g3 {[%emt 0:00:22]} d5 {[%emt 0:00:06]} 7. exd5 {[%emt 0:02:37]} exd5 {[%emt 0:00:04]} 8. Bg2 {[%emt 0:02:56]} Bg4 {[%emt 0:00:06]} 9. Qd3 {[%emt 0:05:02]} Be7 {[%emt 0:02:48]} 10. O-O {[%emt 0:07:27]} O-O {[%emt 0:00:08]} 11. Bf4 {[%emt 0:09:49]} Qd7 {[%emt 0:02:06]} 12. a3 {[%emt 0:03:35]} Rfe8 {[%emt 0:06:35]} 13. Ndb5 {[%emt 0:10:52]} d4 {[%emt 0:11:51]} 14. Ne4 {[%emt 0:02:08]} Nd5 {[%emt 0:00:34]} 15. Bd6 {[%emt 0:06:14]} Bf5 {[%emt 0:15:46]} 16. Bxe7 {[%emt 0:11:34]} Ndxe7 {[%emt 0:02:30]} 17. Nbd6 {[%emt 0:05:27]} Bxe4 {[%emt 0:08:40]} 18. Nxe4 {[%emt 0:00:04]} Ne5 {[%emt 0:00:51]} 19. Qb3 {[%emt 0:01:09]} Rac8 {[%emt 0:01:19]} 20. Rad1 {[%emt 0:00:50]} Red8 {[%emt 0:05:53]} 21. Rfe1 {[%emt 0:03:17]} N7g6 {[%emt 0:06:50]} 22. h4 {[%emt 0:03:13]} h5 {[%emt 0:01:20]} 23. Ng5 {[%emt 0:01:15]} Rc7 {[%emt 0:00:38]} 24. Re2 {[%emt 0:07:17]} a5 {[%emt 0:07:29]} 25. Red2 {[%emt 0:04:03]} d3 {[%emt 0:06:32]} 26. cxd3 {[%emt 0:00:54]} Qd4 {[%emt 0:00:13]} 27. Re2 {[%emt 0:02:46]} a4 {[%emt 0:03:15]} 28. Qb5 {[%emt 0:02:34]} b6 {[%emt 0:05:40]} 29. Re4 {[%emt 0:00:56]} Qd6 {[%emt 0:01:22]} 30. d4 {[%emt 0:00:21]} f6 {[%emt 0:01:03]} 31. Rde1 {[%emt 0:01:29]} fxg5 {[%emt 0:02:09]} 32. dxe5 {[%emt 0:00:07]} Qd2 {[%emt 0:00:33]} 33. Qxb6 {[%emt 0:02:20]} Rc2 {[%emt 0:05:30]} 34. R4e2 {[%emt 0:00:23]} Rc1 {[%emt 0:00:30]} 35. Rxd2 {[%emt 0:02:47]} Rxe1+ {[%emt 0:00:08]} 36. Bf1 {[%emt 0:00:46]} Rxd2 {[%emt 0:00:07]} 37. Qxg6 {[%emt 0:00:05]} Rdd1 {[%emt 0:00:34]} 38. Qe8+ {[%emt 0:00:11]} Kh7 {[%emt 0:00:01]} 39. Qxh5+ {[%emt 0:00:06]} Kg8 {[%emt 0:00:08]} 40. Qe8+ {[%emt 0:00:39]} Kh7 {[%emt 0:00:01]} 41. Qb5 {[%emt 0:00:07]} gxh4 {[%emt 0:00:13]} 42. gxh4 {[%emt 0:00:11]} Rd4 {[%emt 0:00:37]} 43. Kg2 {[%emt 0:00:16]} Rxh4 {[%emt 0:00:59]} 44. Bd3+ {[%emt 0:00:29]} g6 {[%emt 0:00:43]} 45. Qd7+ {[%emt 0:00:05]} Kh6 {[%emt 0:00:05]} 46. Qe6 {[%emt 0:00:07]} 1-0